bitfinex/quotes_BTCUSD_20240905
["timestamp","ask_amount","ask_price","bid_price","bid_amount"]
[1725508723393,0.74777924,57278.0,57277.0,0.077672]
[1725508723824,0.99220024,57278.0,57277.0,0.077672]
[1725508724661,0.74777924,57278.0,57277.0,0.077672]
[1725508725112,0.99220024,57278.0,57277.0,0.077672]
[1725508727560,0.74777924,57278.0,57277.0,0.077672]
[1725508728447,0.74777924,57278.0,57277.0,0.272972]
[1725508730614,1.00220024,57278.0,57277.0,0.077672]
[1725508731583,0.75777924,57278.0,57277.0,0.077672]
[1725508732314,1.00220024,57278.0,57277.0,0.077672]
[1725508733479,0.75777924,57278.0,57277.0,0.077672]
[1725508733990,1.00220024,57278.0,57277.0,0.077672]
[1725508734439,0.75777924,57278.0,57277.0,0.077672]
[1725508736037,0.74777924,57278.0,57277.0,0.259972]
[1725508736248,0.75777924,57278.0,57277.0,0.259972]
[1725508736457,0.74777924,57278.0,57277.0,0.259972]
[1725508736664,0.75777924,57278.0,57277.0,0.259972]
[1725508737980,0.75777924,57278.0,57277.0,0.077672]
[1725508738522,0.52539889,57278.0,57277.0,0.077672]
[1725508738781,0.72519889,57278.0,57277.0,0.077672]
[1725508739018,1.21404089,57278.0,57277.0,0.077672]
[1725508740712,0.67452067,57278.0,57277.0,0.077672]
[1725508740938,0.76981989,57278.0,57277.0,0.077672]
[1725508741405,1.01424089,57278.0,57277.0,0.077672]
[1725508742799,0.42009967,57278.0,57277.0,0.077672]
[1725508743030,0.51539889,57278.0,57277.0,0.670972]
[1725508748664,0.51539889,57278.0,57277.0,0.72345303]
[1725508749337,0.20432534,57278.0,57277.0,0.670972]
[1725508750287,0.44874634,57278.0,57277.0,0.670972]
[1725508751363,0.69316734,57278.0,57277.0,0.077672]
[1725508751580,0.54874634,57278.0,57277.0,0.077672]
[1725508753320,0.79316734,57278.0,57277.0,0.077672]
[1725508753760,0.54874634,57278.0,57277.0,0.077672]
[1725508754400,0.79316734,57278.0,57277.0,0.077672]
[1725508755231,0.69786812,57278.0,57277.0,0.077672]
[1725508755660,0.79316734,57278.0,57277.0,0.077672]
[1725508756095,0.54874634,57278.0,57277.0,0.077672]
[1725508756303,0.19529922,57278.0,57277.0,0.077672]
[1725508757406,0.56193022,57278.0,57277.0,0.077672]
[1725508758997,0.22221,57278.0,57277.0,0.077672]
[1725508759232,0.244403,57283.0,57279.0,0.03504]
[1725508759233,0.09529922,57280.0,57279.0,0.03504]
[1725508759653,0.19529922,57280.0,57279.0,0.05804]
[1725508760724,0.19629922,57280.0,57279.0,0.06104]
[1725508760932,0.09629922,57280.0,57279.0,0.06104]
[1725508761143,0.19629922,57280.0,57279.0,0.06104]
[1725508762002,0.19729922,57280.0,57279.0,0.06804]
[1725508762211,0.19729922,57280.0,57279.0,0.190248]
[1725508762420,0.09729922,57280.0,57279.0,0.06804]
[1725508762630,0.19729922,57280.0,57279.0,0.06804]
[1725508764140,0.09729922,57280.0,57279.0,0.06804]
[1725508765017,0.21950522,57280.0,57279.0,0.06804]
[1725508765240,0.31950522,57280.0,57279.0,0.06804]
[1725508765724,0.32032122,57280.0,57279.0,0.06804]
[1725508766165,0.32032122,57280.0,57279.0,0.12052973]
[1725508766591,0.19811522,57280.0,57279.0,0.12052973]
[1725508767006,0.32032122,57280.0,57279.0,0.12052973]
[1725508767808,0.32032122,57280.0,57279.0,0.12052283]
[1725508770792,0.56473422,57280.0,57279.0,0.12052283]
[1725508771414,0.56473422,57280.0,57279.0,0.06804]
[1725508772062,0.80914722,57280.0,57279.0,0.04504]
[1725508772288,1.23396022,57280.0,57279.0,0.04504]
[1725508773588,1.23396022,57280.0,57279.0,0.06804]
[1725508774222,1.05356022,57280.0,57279.0,0.06804]
[1725508775506,0.80914722,57280.0,57279.0,0.06804]
[1725508780685,0.80914722,57280.0,57279.0,0.12053073]
[1725508782433,0.713848,57280.0,57279.0,0.52423073]
[1725508782650,1.05356022,57280.0,57279.0,0.47174]
[1725508782876,1.05356022,57280.0,57279.0,0.52423923]
[1725508782877,0.80914722,57280.0,57279.0,0.52423923]
[1725508784012,0.002816,57280.0,57279.0,1.17342559]
[1725508784230,0.002816,57280.0,57279.0,1.04219877]
[1725508784693,0.13100951,57308.0,57279.0,1.04219877]
[1725508784694,0.244375,57290.0,57285.0,0.03504]
[1725508784919,0.122192,57287.0,57286.0,0.023]
[1725508785357,0.22842379,57291.0,57286.0,0.023]
[1725508785575,0.12219,57288.0,57286.0,0.023]
[1725508786220,0.21749022,57287.0,57286.0,0.022]
[1725508786446,0.09529922,57287.0,57286.0,0.021]
[1725508786671,0.21749022,57287.0,57286.0,0.024]
[1725508787119,0.21749022,57287.0,57286.0,0.023]
[1725508787355,0.09529922,57287.0,57286.0,0.023]
[1725508787585,0.12268266,57287.0,57286.0,0.023]
[1725508788512,0.12268266,57287.0,57286.0,0.027]
[1725508788964,0.12268266,57287.0,57286.0,0.025]
[1725508789191,0.12368266,57287.0,57286.0,0.032]
[1725508789454,0.001,57287.0,57286.0,1.38119729]
[1725508789678,0.001,57287.0,57286.0,1.63522379]
[1725508789931,0.001,57287.0,57286.0,1.52398254]
[1725508790172,0.001,57287.0,57286.0,1.63322379]
[1725508790427,0.001,57287.0,57286.0,1.76416374]
[1725508790654,0.001,57287.0,57286.0,1.63822379]
[1725508791100,0.001816,57287.0,57286.0,1.63822379]
[1725508791549,0.001816,57287.0,57286.0,1.67385867]
[1725508791775,0.001816,57287.0,57286.0,1.53792457]
[1725508792001,0.002816,57287.0,57286.0,1.68280371]
[1725508792250,0.001816,57287.0,57286.0,1.67580371]
[1725508792493,0.001816,57287.0,57286.0,1.55892457]
[1725508792730,0.000816,57287.0,57286.0,1.54492457]
[1725508792966,0.000816,57287.0,57286.0,1.53092457]
[1725508793204,0.001816,57287.0,57286.0,1.55892457]
[1725508793416,0.001816,57287.0,57286.0,1.54492457]
[1725508793641,0.001816,57287.0,57286.0,1.531794]
[1725508793866,0.001816,57287.0,57286.0,1.55892457]
[1725508794093,0.000816,57287.0,57286.0,1.53092457]
[1725508794316,0.000816,57287.0,57286.0,1.6224109]
[1725508794760,0.000816,57287.0,57286.0,1.517794]
[1725508795511,0.02737902,57297.0,57291.0,1.238855]
[1725508795725,0.02737902,57297.0,57291.0,1.34027135]
[1725508796374,0.02737902,57297.0,57291.0,1.260855]
[1725508796586,0.02737902,57297.0,57291.0,1.288234]
[1725508796795,0.02737902,57297.0,57291.0,1.302234]
[1725508796977,0.02737902,57297.0,57291.0,1.3806292]
[1725508797206,0.001816,57292.0,57291.0,1.3946292]
[1725508798493,0.001816,57292.0,57291.0,1.5726]
[1725508798706,0.001816,57292.0,57291.0,1.6509952]
[1725508799588,0.001816,57292.0,57291.0,1.5726]
[1725508799818,0.001816,57292.0,57291.0,1.67705257]
[1725508800473,0.001816,57292.0,57291.0,1.67505257]
[1725508800698,0.001816,57292.0,57291.0,1.67705257]
[1725508801096,0.001816,57292.0,57291.0,1.67505257]
[1725508801398,0.001816,57292.0,57291.0,1.316234]
[1725508801625,0.09711522,57292.0,57291.0,0.090419]
[1725508801875,0.46365822,57292.0,57291.0,0.06304]
[1725508802311,0.70802022,57292.0,57291.0,0.06304]
[1725508802529,1.32132022,57292.0,57291.0,0.06304]
[1725508802745,0.564259,57292.0,57291.0,0.04904]
[1725508802955,0.21829622,57292.0,57291.0,0.04904]
[1725508803197,0.21929622,57292.0,57291.0,0.04504]
[1725508803416,0.46365822,57292.0,57291.0,0.04504]
[1725508803681,0.46265822,57292.0,57291.0,0.04704]
[1725508803894,0.48808108,57292.0,57291.0,0.04704]
[1725508804114,0.73344308,57292.0,57291.0,0.05504]
[1725508804334,0.73344308,57292.0,57291.0,0.07804]
[1725508804547,0.73344308,57292.0,57291.0,0.06604]
[1725508805211,0.97680508,57292.0,57291.0,0.023]
[1725508805460,1.027267,57286.0,57285.0,0.00163]
[1725508805706,0.122188,57289.0,57285.0,0.00163]
[1725508805960,0.122185,57290.0,57285.0,0.00163]
[1725508806220,0.122192,57287.0,57285.0,0.00163]
[1725508806434,0.21749122,57287.0,57285.0,0.00163]
[1725508806661,0.122193,57286.0,57285.0,0.03667]
[1725508806883,0.122193,57286.0,57285.0,0.07367]
[1725508807109,0.122193,57286.0,57285.0,0.07067]
[1725508807367,0.610967,57286.0,57285.0,0.07067]
[1725508807615,0.796467,57286.0,57285.0,0.08467]
[1725508807841,1.040854,57286.0,57285.0,0.07067]
[1725508808346,0.796467,57286.0,57285.0,0.05967]
[1725508808596,0.796467,57286.0,57285.0,0.07367]
[1725508808597,0.17462326,57286.0,57285.0,0.07367]
[1725508808846,0.75869648,57286.0,57285.0,0.07367]
[1725508809095,0.75869648,57286.0,57285.0,0.05967]
[1725508809568,1.00408348,57286.0,57285.0,0.08767]
[1725508809816,1.09042348,57286.0,57285.0,0.07367]
[1725508810038,1.08942348,57286.0,57285.0,0.05967]
[1725508810260,1.08942348,57286.0,57285.0,0.07367]
[1725508810480,1.08942348,57286.0,57285.0,0.05967]
[1725508810695,1.09042348,57286.0,57285.0,0.07067]
[1725508811127,1.09042348,57286.0,57285.0,0.08467]
[1725508811581,1.69342348,57286.0,57285.0,0.07367]
[1725508811806,1.69342348,57286.0,57285.0,0.05067]
[1725508812023,1.69442348,57286.0,57285.0,0.06067]
[1725508812242,1.79442348,57286.0,57285.0,0.06067]
[1725508812699,1.19042348,57286.0,57285.0,0.08367]
[1725508814548,0.94603648,57286.0,57285.0,0.08367]
[1725508818266,0.94503648,57286.0,57285.0,0.07367]
[1725508818743,0.94603648,57286.0,57285.0,0.08267]
[1725508818950,0.94603648,57286.0,57285.0,0.06867]
[1725508819174,0.94503648,57286.0,57285.0,0.05967]
[1725508819361,0.94603648,57286.0,57285.0,0.08167]
[1725508822538,0.88187846,57286.0,57285.0,0.08167]
[1725508822749,1.12626546,57286.0,57285.0,0.08167]
[1725508825216,1.15209196,57286.0,57285.0,0.08167]
[1725508826111,2.02947896,57286.0,57285.0,0.02363]
[1725508827107,2.02947896,57286.0,57285.0,0.01063]
[1725508827576,2.02947896,57286.0,57285.0,0.00863]
[1725508827577,2.02847896,57286.0,57285.0,0.00863]
[1725508827818,1.61217896,57286.0,57285.0,0.00863]
[1725508828288,1.61217896,57286.0,57285.0,0.01263]
[1725508832028,1.6027678,57286.0,57285.0,0.01263]
[1725508833196,1.6027678,57286.0,57285.0,0.00563]
[1725508833886,1.6027678,57286.0,57285.0,0.00163]
[1725508834131,1.6027678,57286.0,57285.0,0.00263]
[1725508834363,1.6027678,57286.0,57285.0,0.00663]
[1725508834640,1.6027678,57286.0,57285.0,0.00563]
[1725508834876,1.6027678,57286.0,57285.0,0.00663]
[1725508835110,1.6027678,57286.0,57285.0,0.00263]
[1725508835348,1.6027678,57286.0,57285.0,0.00163]
[1725508835586,1.60219174,57286.0,57285.0,0.00163]
[1725508835815,1.60619174,57286.0,57285.0,0.00163]
[1725508837969,1.60700674,57286.0,57285.0,0.00163]
[1725508841315,1.60300674,57286.0,57285.0,0.00163]
[1725508841556,1.60300674,57286.0,57285.0,0.00463]
[1725508842235,0.70223352,57286.0,57285.0,0.60863]
[1725508842447,0.79753274,57286.0,57285.0,0.60863]
[1725508843333,0.79753274,57286.0,57285.0,0.60563]
[1725508843827,0.79753274,57286.0,57285.0,0.60963]
[1725508844018,0.79753274,57286.0,57285.0,0.61063]
[1725508844529,0.79753274,57286.0,57285.0,0.60663]
[1725508844757,0.79753274,57286.0,57285.0,0.60563]
[1725508844980,1.04291974,57286.0,57285.0,0.61463]
[1725508845198,1.04291974,57286.0,57285.0,0.03363]
[1725508845433,1.04291974,57286.0,57285.0,0.01063]
[1725508846606,1.60550674,57286.0,57285.0,0.01063]
[1725508847036,0.94762052,57286.0,57285.0,0.59163]
[1725508847274,0.70323352,57286.0,57285.0,0.59163]
[1725508847500,0.79853274,57286.0,57285.0,0.59163]
[1725508848110,0.79853274,57286.0,57285.0,0.61463]
[1725508849234,0.79853274,57286.0,57285.0,0.03363]
[1725508849450,1.04291974,57286.0,57285.0,0.01063]
[1725508850359,1.04291974,57286.0,57285.0,0.00763]
[1725508850576,1.07030624,57286.0,57285.0,0.00763]
[1725508850793,0.72962002,57286.0,57285.0,0.02463]
[1725508851018,0.82491924,57286.0,57285.0,0.02463]
[1725508851278,0.82491924,57286.0,57285.0,0.18523]
[1725508851492,0.79753274,57286.0,57285.0,0.20823]
[1725508854813,0.82491829,57286.0,57285.0,0.26067515]
[1725508855493,0.82491829,57286.0,57285.0,0.26069435]
[1725508855717,0.72961907,57286.0,57285.0,0.26069435]
[1725508855942,0.58053129,57286.0,57285.0,0.51413]
[1725508856810,0.58053129,57286.0,57285.0,0.59282653]
[1725508857685,0.55314574,57286.0,57285.0,0.59282653]
[1725508860518,0.55314574,57286.0,57285.0,0.51413]
[1725508860997,0.55314574,57286.0,57285.0,0.59282653]
[1725508861698,0.55314574,57286.0,57285.0,0.51413]
[1725508862158,0.79753274,57286.0,57285.0,0.51413]
[1725508862380,0.79753274,57286.0,57285.0,0.56658694]
[1725508863836,0.79753274,57286.0,57285.0,0.51413]
[1725508864521,0.79753274,57286.0,57285.0,0.56658412]
[1725508864769,0.79753274,57286.0,57285.0,0.59282653]
[1725508865004,0.79753274,57286.0,57285.0,0.51413]
[1725508865240,0.79753274,57286.0,57285.0,0.56658365]
[1725508865455,0.79753274,57286.0,57285.0,0.51413]
[1725508867970,0.55314574,57286.0,57285.0,0.51413]
[1725508868447,0.79753274,57286.0,57285.0,0.51413]
[1725508869362,0.55314574,57286.0,57285.0,0.51413]
[1725508869591,0.55314574,57286.0,57285.0,0.59280938]
[1725508870530,0.71119274,57286.0,57285.0,0.59280938]
[1725508872715,0.71119274,57286.0,57285.0,0.51413]
[1725508872936,0.71119274,57286.0,57285.0,0.33353]
[1725508873165,0.71119274,57286.0,57285.0,0.02763]
[1725508873393,1.13667974,57286.0,57285.0,0.00463]
[1725508873630,0.95557974,57286.0,57285.0,0.00463]
[1725508874318,0.37150652,57286.0,57285.0,0.51263]
[1725508874754,0.79717274,57286.0,57285.0,0.51263]
[1725508875192,0.79717274,57286.0,57285.0,0.53563]
[1725508876948,0.79717274,57286.0,57285.0,0.58808582]
[1725508877602,0.79717274,57286.0,57285.0,0.5880821]
[1725508878551,0.79717274,57286.0,57285.0,0.61430815]
[1725508883522,0.79717274,57286.0,57285.0,0.61430124]
[1725508884418,0.79717274,57286.0,57285.0,0.53563]
[1725508887714,0.79717274,57286.0,57285.0,0.64052499]
[1725508888448,0.82455728,57286.0,57285.0,0.64052499]
[1725508890923,0.82455728,57286.0,57285.0,0.53563]
[1725508891654,0.67005322,57286.0,57285.0,0.61432193]
[1725508891891,0.79224622,57286.0,57285.0,0.61432193]
[1725508892590,0.8182028,57286.0,57285.0,0.61432193]
[1725508893774,0.8182028,57286.0,57285.0,0.53563]
[1725508895693,0.78503559,57286.0,57285.0,0.53563]
[1725508896394,0.7322228,57286.0,57285.0,0.53563]
[1725508897367,0.75960727,57286.0,57285.0,0.61432193]
[1725508897587,0.76042327,57286.0,57285.0,0.61432193]
[1725508897854,0.76042327,57286.0,57285.0,0.53563]
[1725508898067,0.76042327,57286.0,57285.0,0.61432193]
[1725508898532,0.76042327,57286.0,57285.0,0.53563]
[1725508899657,0.76042327,57286.0,57285.0,0.61432193]
[1725508900168,0.76042327,57286.0,57285.0,0.53563]
[1725508900404,0.76042327,57286.0,57285.0,0.61432193]
[1725508900640,0.81358327,57286.0,57285.0,0.61432193]
[1725508900880,0.81358327,57286.0,57285.0,0.53563]
[1725508901603,0.81358327,57286.0,57285.0,0.61432193]
[1725508903813,0.81358327,57286.0,57285.0,0.53563]
[1725508905684,0.81358327,57286.0,57285.0,0.64060885]
[1725508906193,1.52125727,57286.0,57285.0,0.00463]
[1725508906433,1.88625727,57286.0,57285.0,0.00463]
[1725508907190,1.88625727,57286.0,57285.0,0.00163]
[1725508907410,1.88625727,57286.0,57285.0,0.00263]
[1725508907654,1.88925727,57286.0,57285.0,0.00263]
[1725508907877,1.88925727,57286.0,57285.0,0.00163]
[1725508908112,1.89025727,57286.0,57285.0,0.00163]
[1725508908599,0.95065322,57286.0,57285.0,0.01163]
[1725508908864,0.95065322,57286.0,57285.0,0.21683]
[1725508908865,0.855354,57286.0,57285.0,0.21683]
[1725508909083,0.70626622,57286.0,57285.0,0.24983]
[1725508909269,0.71326622,57286.0,57285.0,0.25083]
[1725508909740,0.71526622,57286.0,57285.0,0.25083]
[1725508909973,0.71526622,57286.0,57285.0,0.24983]
[1725508909974,0.46387922,57286.0,57285.0,0.24983]
[1725508910194,0.21749222,57286.0,57285.0,0.52433]
[1725508910402,0.21749222,57286.0,57285.0,0.52933]
[1725508910616,0.31830822,57286.0,57285.0,0.52933]
[1725508911043,0.56269522,57286.0,57285.0,0.53133]
[1725508911481,0.80708222,57286.0,57285.0,0.53133]
[1725508911706,0.80708222,57286.0,57285.0,0.33813]
[1725508912135,0.711783,57286.0,57285.0,0.33813]
[1725508912353,0.7374486,57286.0,57285.0,0.33813]
[1725508914024,0.4930616,57286.0,57285.0,0.33813]
[1725508920016,0.23414697,57286.0,57285.0,0.33813]
[1725508920422,0.35633997,57286.0,57285.0,0.33813]
[1725508921937,0.35633997,57286.0,57285.0,0.03863]
[1725508922170,0.70072697,57286.0,57285.0,0.03863]
[1725508922624,0.70154297,57286.0,57285.0,0.03863]
[1725508922843,0.94592997,57286.0,57285.0,0.03863]
[1725508923055,0.70154297,57286.0,57285.0,0.01663]
[1725508923266,0.94592997,57286.0,57285.0,0.01163]
[1725508923479,0.94692997,57286.0,57285.0,0.01163]
[1725508923734,0.94692997,57286.0,57285.0,0.01363]
[1725508923957,0.94592997,57286.0,57285.0,0.01363]
[1725508924373,0.94692997,57286.0,57285.0,0.01363]
[1725508926749,0.95717,57286.0,57285.0,0.01363]
[1725508927422,0.95717,57286.0,57272.0,0.05245242]
[1725508927423,0.12221,57278.0,57269.0,0.01]
[1725508927634,0.36667,57272.0,57269.0,0.02]
[1725508927843,0.855564,57272.0,57269.0,0.02]
[1725508928075,0.955564,57272.0,57269.0,0.02]
[1725508928317,0.711117,57272.0,57271.0,0.446132]
[1725508928526,0.711117,57272.0,57271.0,0.456132]
[1725508928958,0.73622659,57272.0,57271.0,0.011632]
[1725508929399,0.611182,57266.0,57265.0,0.01]
[1725508929615,0.611225,57262.0,57261.0,0.02]
[1725508930041,0.611245,57260.0,57259.0,0.02]
[1725508930307,0.1,57262.0,57256.0,0.00164]
[1725508930308,0.233255,57257.0,57256.0,0.00164]
[1725508930526,0.366766,57257.0,57256.0,0.00364]
[1725508930734,0.711277,57257.0,57256.0,0.00364]
[1725508931181,0.955788,57257.0,57256.0,0.00364]
[1725508931680,0.98318858,57257.0,57256.0,0.00364]
[1725508931884,0.98318858,57257.0,57256.0,0.00464]
[1725508932163,0.98318858,57257.0,57256.0,0.00264]
[1725508932636,1.00941594,57257.0,57256.0,0.00264]
[1725508933320,1.00841594,57257.0,57256.0,0.00264]
[1725508933587,1.00841594,57257.0,57256.0,0.00164]
[1725508933831,0.27588294,57257.0,57256.0,0.48984]
[1725508934040,0.27588294,57257.0,57256.0,0.51484]
[1725508934360,0.001,57257.0,57256.0,0.637097]
[1725508934585,0.001,57257.0,57256.0,0.916652]
[1725508934805,0.001,57257.0,57256.0,0.670137]
[1725508935029,0.001,57257.0,57256.0,0.914652]
[1725508935262,0.002,57257.0,57256.0,0.921652]
[1725508935484,0.002,57257.0,57256.0,0.677137]
[1725508935934,0.001,57257.0,57256.0,0.677137]
[1725508936396,0.001,57257.0,57256.0,0.921652]
[1725508936397,0.002,57257.0,57256.0,0.921652]
[1725508936639,0.001,57257.0,57256.0,0.670137]
[1725508936847,0.02559064,57265.0,57264.0,0.45634]
[1725508937065,0.222237,57266.0,57265.0,0.04604]
[1725508937286,0.1,57266.0,57265.0,0.06804]
[1725508937719,0.24764987,57266.0,57265.0,0.28124]
[1725508937943,0.24764987,57266.0,57265.0,0.29024]
[1725508938334,0.24764987,57266.0,57265.0,0.28924]
[1725508938579,0.49212287,57266.0,57265.0,0.28924]
[1725508938791,0.24764987,57266.0,57265.0,0.28924]
[1725508939678,0.49312287,57266.0,57265.0,0.28924]
[1725508939932,0.73759587,57266.0,57265.0,0.28924]
[1725508940167,0.73759587,57266.0,57265.0,0.30024]
[1725508940382,0.49312287,57266.0,57265.0,0.28924]
[1725508940610,0.001,57266.0,57265.0,0.71740943]
[1725508940823,0.002,57266.0,57265.0,0.848155]
[1725508941047,0.366615,57281.0,57280.0,0.016]
[1725508941293,0.366615,57281.0,57280.0,0.015]
[1725508941529,0.366615,57281.0,57280.0,0.2618]
[1725508941746,0.148039,57286.0,57285.0,0.4392]
[1725508941964,0.392426,57286.0,57285.0,0.4622]
[1725508942817,0.392426,57286.0,57285.0,0.4612]
[1725508943027,0.636813,57286.0,57285.0,0.4612]
[1725508943251,0.636813,57286.0,57285.0,0.4602]
[1725508943672,0.736813,57286.0,57285.0,0.4602]
[1725508943852,0.736813,57286.0,57285.0,0.4632]
[1725508944505,0.76419929,57286.0,57285.0,0.4632]
[1725508945785,0.100816,57286.0,57285.0,0.4632]
[1725508945996,0.000816,57286.0,57285.0,0.4632]
[1725508946850,0.000816,57286.0,57285.0,0.4602]
[1725508947081,0.002816,57286.0,57285.0,0.4742]
[1725508952752,0.369396,57286.0,57285.0,0.4512]
[1725508952975,0.613783,57286.0,57285.0,0.4512]
[1725508953696,0.85817,57286.0,57285.0,0.4512]
[1725508953906,0.85817,57286.0,57285.0,0.4742]
[1725508955007,0.613783,57286.0,57285.0,0.4742]
[1725508955445,0.60592761,57286.0,57285.0,0.4742]
[1725508955660,0.60580542,57286.0,57285.0,0.4742]
[1725508958090,0.60580542,57286.0,57285.0,0.475832]
[1725508958310,0.60662142,57286.0,57285.0,0.475832]
[1725508962862,0.000816,57286.0,57285.0,0.475832]
[1725508964641,0.000816,57286.0,57285.0,0.84242]
[1725508964858,0.000816,57286.0,57285.0,0.475832]
[1725508967368,0.000816,57286.0,57285.0,0.598028]
[1725508967799,0.0694,57312.0,57299.0,0.012]
[1725508968013,0.244249,57319.0,57299.0,0.47104]
[1725508968014,0.02737995,57308.0,57299.0,0.47104]
[1725508968226,0.122151,57306.0,57299.0,0.47104]
[1725508968438,0.14792613,57305.0,57299.0,0.47104]
[1725508968642,0.122155,57304.0,57299.0,0.47104]
[1725508969061,0.122155,57304.0,57299.0,0.48004]
[1725508969270,0.501,57300.0,57299.0,0.48004]
[1725508969699,0.5,57300.0,57299.0,0.47104]
[1725508969909,0.501,57300.0,57299.0,0.48004]
[1725508970402,0.500816,57300.0,57299.0,0.47104]
[1725508970610,0.62298,57300.0,57299.0,0.47104]
[1725508970822,0.62398,57300.0,57299.0,0.49104]
[1725508971261,0.62398,57300.0,57299.0,0.48004]
[1725508971705,0.62398,57300.0,57299.0,0.49404]
[1725508971910,0.62398,57300.0,57299.0,0.48004]
[1725508972117,0.62398,57300.0,57299.0,0.49404]
[1725508972325,0.62298,57300.0,57299.0,0.48504]
[1725508972788,0.62398,57300.0,57299.0,0.49804]
[1725508973265,0.62298,57300.0,57299.0,0.48504]
[1725508973483,0.62298,57300.0,57299.0,0.49804]
[1725508973484,0.62398,57300.0,57299.0,0.49804]
[1725508973933,0.868308,57300.0,57299.0,0.49804]
[1725508974587,0.62398,57300.0,57299.0,0.49804]
[1725508974791,0.868308,57300.0,57299.0,0.49804]
[1725508975223,0.62398,57300.0,57299.0,0.49804]
[1725508975666,1.112636,57300.0,57299.0,0.49804]
[1725508975878,0.868308,57300.0,57299.0,0.49804]
[1725508977183,0.501816,57300.0,57299.0,0.49804]
[1725508977624,0.62398,57300.0,57299.0,0.49804]
[1725508980713,1.112636,57300.0,57299.0,0.2793]
[1725508980926,0.868308,57300.0,57299.0,0.2793]
[1725508981558,1.112636,57300.0,57299.0,0.31433]
[1725508983127,1.356964,57300.0,57299.0,0.31433]
[1725508983774,1.356964,57300.0,57299.0,0.04]
[1725508983775,1.503664,57300.0,57299.0,0.04]
[1725508983979,1.53104224,57300.0,57299.0,0.04]
[1725508984885,1.23901424,57300.0,57299.0,0.027]
[1725508985111,1.23901424,57300.0,57299.0,0.041]
[1725508985335,1.23901424,57300.0,57299.0,0.07603]
[1725508985544,1.23901424,57300.0,57299.0,0.07803]
[1725508985983,1.23901424,57300.0,57299.0,0.08303]
[1725508986167,1.23901424,57300.0,57299.0,0.07603]
[1725508986394,1.23901424,57300.0,57299.0,0.07103]
[1725508986604,1.211636,57300.0,57299.0,0.07103]
[1725508986823,1.212636,57300.0,57299.0,0.08003]
[1725508988418,1.212636,57300.0,57299.0,0.09203]
[1725508989371,1.456964,57300.0,57299.0,0.09203]
[1725508989592,1.456964,57300.0,57299.0,0.06803]
[1725508990050,1.48434251,57300.0,57299.0,0.06903]
[1725508990998,1.48434251,57300.0,57299.0,0.04503]
[1725508991217,1.48334251,57300.0,57299.0,0.06003]
[1725508991439,1.48434251,57300.0,57299.0,0.06903]
[1725508992397,1.48434251,57300.0,57299.0,0.05703]
[1725508993581,1.48434251,57300.0,57299.0,0.05603]
[1725508993806,1.456964,57300.0,57299.0,0.06303]
[1725508994034,1.456964,57300.0,57299.0,0.021]
[1725508994510,1.212636,57300.0,57299.0,0.033]
[1725508994758,1.212636,57300.0,57299.0,0.253]
[1725508995209,1.212636,57300.0,57299.0,0.28803]
[1725508997475,1.212636,57300.0,57299.0,0.26503]
[1725508997476,1.456964,57300.0,57299.0,0.26503]
[1725508997696,1.456964,57300.0,57299.0,0.26403]
[1725508997913,1.15546232,57300.0,57299.0,0.26403]
[1725508998339,1.15546232,57300.0,57299.0,0.26503]
[1725509003699,1.18284048,57300.0,57299.0,0.26503]
[1725509003926,0.95967739,57300.0,57299.0,0.26503]
[1725509004597,0.71534939,57300.0,57299.0,0.26503]
[1725509004821,0.71534939,57300.0,57299.0,0.28803]
[1725509005048,0.95967739,57300.0,57299.0,0.28803]
[1725509005492,0.95967739,57300.0,57299.0,0.28966]
[1725509005719,0.71616439,57300.0,57299.0,0.28966]
[1725509005950,0.71616439,57300.0,57299.0,0.46346]
[1725509007639,0.68878623,57300.0,57299.0,0.46346]
[1725509009727,0.68678623,57300.0,57299.0,0.46346]
[1725509010962,0.71416419,57300.0,57299.0,0.46346]
[1725509011595,0.46983619,57300.0,57299.0,0.46346]
[1725509012196,0.71416419,57300.0,57299.0,0.46346]
[1725509012596,0.46983619,57300.0,57299.0,0.46346]
[1725509014025,0.46983619,57300.0,57299.0,0.51586912]
[1725509014256,0.46983619,57300.0,57299.0,0.51588809]
[1725509016635,0.68678623,57300.0,57299.0,0.51588809]
[1725509017050,0.44245823,57300.0,57299.0,0.51588809]
[1725509017944,0.001815,57300.0,57299.0,0.69048219]
[1725509018374,0.001815,57300.0,57299.0,0.46346]
[1725509018584,0.123979,57300.0,57299.0,0.56833461]
[1725509018794,0.368307,57300.0,57299.0,0.56833461]
[1725509019256,0.001815,57300.0,57299.0,0.56833461]
[1725509019469,0.001815,57300.0,57299.0,0.69050061]
[1725509019684,0.001815,57300.0,57299.0,0.56833461]
[1725509019891,0.001815,57300.0,57299.0,0.585626]
[1725509020343,0.001815,57300.0,57299.0,0.829958]
[1725509022313,0.001815,57300.0,57299.0,1.07429]
[1725509023214,0.001815,57300.0,57299.0,0.829958]
[1725509023442,0.244283,57311.0,57299.0,0.829958]
[1725509023443,0.244262,57316.0,57315.0,0.007]
[1725509023669,0.27162641,57318.0,57308.0,0.244291]
[1725509023670,0.39375041,57318.0,57317.0,0.04703]
[1725509023889,0.366376,57318.0,57317.0,0.27623]
[1725509024119,0.366376,57318.0,57317.0,0.43373]
[1725509024557,0.366376,57318.0,57317.0,0.43473]
[1725509025018,0.00082,57320.0,57319.0,0.013]
[1725509025243,0.00082,57320.0,57319.0,0.56034189]
[1725509025465,0.00082,57320.0,57319.0,0.80458889]
[1725509025934,0.00082,57320.0,57319.0,1.04883589]
[1725509026156,0.00082,57320.0,57319.0,0.87948629]
[1725509026379,0.00082,57320.0,57319.0,0.8001]
[1725509026593,0.00082,57320.0,57319.0,0.51211629]
[1725509026813,0.00082,57320.0,57319.0,0.43373]
[1725509027055,0.00082,57320.0,57319.0,0.44373]
[1725509027274,0.122941,57320.0,57319.0,0.44373]
[1725509027712,0.122941,57320.0,57319.0,0.45773]
[1725509027936,0.00082,57320.0,57319.0,0.45773]
[1725509028448,0.00078,57320.0,57319.0,0.45773]
[1725509028664,0.00078,57320.0,57319.0,0.579853]